[Event "Titled Tuesday Blitz January 17 Late 2023"]
[White "Papayan, Oleg"]
[Black "Liang, Justin"]
[WhiteFideId "4193911"]
[BlackFideId "2099942"]
[WhiteElo "2253"]
[BlackElo "2052"]
[Result "0-1"]
[Round "11"]
[TimeControl "180+2"]
[Date "2023.01.17"]
[WhiteClock "0:00:19"]
[BlackClock "0:01:26"]

1. e4 {[%clk 0:02:55]}  c5 {[%clk 0:02:59]} 2. Nf3 {[%clk 0:02:55]}  e6 {[%clk 0:02:59]} 3. b3 {[%clk 0:02:54]}  Nc6 {[%clk 0:02:59]} 4. Bb2 {[%clk 0:02:53]}  Nf6 {[%clk 0:02:58]} 5. e5 {[%clk 0:02:52]}  Nd5 {[%clk 0:02:58]} 6. g3 {[%clk 0:02:52]}  Be7 {[%clk 0:02:57]} 7. Bg2 {[%clk 0:02:49]}  O-O {[%clk 0:02:56]} 8. O-O {[%clk 0:02:49]}  b6 {[%clk 0:02:56]} 9. Nc3 {[%clk 0:02:31]}  Nc7 {[%clk 0:02:47]} 10. Ne4 {[%clk 0:02:26]}  Bb7 {[%clk 0:02:38]} 11. Re1 {[%clk 0:02:26]}  Ne8 {[%clk 0:02:31]} 12. c4 {[%clk 0:02:19]}  d5 {[%clk 0:02:15]} 13. exd6 {[%clk 0:02:16]}  Nxd6 {[%clk 0:02:15]} 14. Nxd6 {[%clk 0:01:43]}  Qxd6 {[%clk 0:02:16]} 15. d4 {[%clk 0:01:25]}  Bf6 {[%clk 0:02:06]} 16. Qe2 {[%clk 0:00:24]}  cxd4 {[%clk 0:01:43]} 17. Nxd4 {[%clk 0:00:21]}  Bxd4 {[%clk 0:01:42]} 18. Bxc6 {[%clk 0:00:19]}  Qxc6 {[%clk 0:01:26]} 19. Bxd4 {[%clk 0:00:19]}  Qg2# {[%clk 0:01:26]} 0-1


[Site "https://www.chess.com"]

[Event "Titled Tuesday Blitz January 17 Late 2023"]
[White "Jovic, Stanoje"]
[Black "Milikow, Yoav"]
[WhiteFideId "905020"]
[BlackFideId "2822237"]
[WhiteElo "2075"]
[BlackElo "2394"]
[Result "0-1"]
[Round "11"]
[TimeControl "180+2"]
[Date "2023.01.17"]
[WhiteClock "0:00:07"]
[BlackClock "0:02:26"]

1. c4 {[%clk 0:03:00]}  b6 {[%clk 0:02:57]} 2. g3 {[%clk 0:03:00]}  Bb7 {[%clk 0:02:58]} 3. Nf3 {[%clk 0:03:00]}  e6 {[%clk 0:02:58]} 4. Bg2 {[%clk 0:03:00]}  Be7 {[%clk 0:02:59]} 5. O-O {[%clk 0:03:00]}  d6 {[%clk 0:02:59]} 6. Nc3 {[%clk 0:02:59]}  Nf6 {[%clk 0:03:00]} 7. d4 {[%clk 0:02:54]}  O-O {[%clk 0:03:00]} 8. Qc2 {[%clk 0:02:53]}  Nbd7 {[%clk 0:02:59]} 9. e4 {[%clk 0:02:51]}  e5 {[%clk 0:02:58]} 10. d5 {[%clk 0:02:50]}  c5 {[%clk 0:02:58]} 11. dxc6 {[%clk 0:02:45]}  Bxc6 {[%clk 0:02:58]} 12. Rd1 {[%clk 0:02:42]}  Rc8 {[%clk 0:02:58]} 13. h3 {[%clk 0:02:36]}  Re8 {[%clk 0:02:58]} 14. Be3 {[%clk 0:02:34]}  Bf8 {[%clk 0:02:58]} 15. Nh4 {[%clk 0:02:29]}  Nc5 {[%clk 0:02:57]} 16. Bxc5 {[%clk 0:02:25]}  bxc5 {[%clk 0:02:57]} 17. Nf5 {[%clk 0:02:24]}  g6 {[%clk 0:02:55]} 18. Ne3 {[%clk 0:02:24]}  Rb8 {[%clk 0:02:55]} 19. Ned5 {[%clk 0:02:20]}  Nd7 {[%clk 0:02:55]} 20. h4 {[%clk 0:02:16]}  Rb7 {[%clk 0:02:53]} 21. Bh3 {[%clk 0:02:14]}  Kg7 {[%clk 0:02:53]} 22. Rd2 {[%clk 0:01:55]}  h5 {[%clk 0:02:51]} 23. Rad1 {[%clk 0:01:54]}  Nb6 {[%clk 0:02:51]} 24. Nxb6 {[%clk 0:01:49]}  Qxb6 {[%clk 0:02:52]} 25. Nd5 {[%clk 0:01:46]}  Bxd5 {[%clk 0:02:52]} 26. exd5 {[%clk 0:01:39]}  Reb8 {[%clk 0:02:53]} 27. b3 {[%clk 0:01:38]}  Be7 {[%clk 0:02:53]} 28. Kg2 {[%clk 0:01:35]}  a5 {[%clk 0:02:54]} 29. Rd3 {[%clk 0:01:33]}  Ra7 {[%clk 0:02:55]} 30. a4 {[%clk 0:01:30]}  Rab7 {[%clk 0:02:54]} 31. Rf3 {[%clk 0:01:28]}  Qc7 {[%clk 0:02:54]} 32. Rdd3 {[%clk 0:01:28]}  e4 {[%clk 0:02:52]} 33. Qc3+ {[%clk 0:01:15]}  f6 {[%clk 0:02:52]} 34. Be6 {[%clk 0:01:02]}  exd3 {[%clk 0:02:51]} 35. Qxd3 {[%clk 0:00:57]}  Rxb3 {[%clk 0:02:52]} 36. Qxb3 {[%clk 0:00:57]}  Rxb3 {[%clk 0:02:53]} 37. Rxb3 {[%clk 0:00:57]}  Bd8 {[%clk 0:02:53]} 38. f4 {[%clk 0:00:46]}  f5 {[%clk 0:02:51]} 39. Kf3 {[%clk 0:00:41]}  Qe7 {[%clk 0:02:40]} 40. Rb8 {[%clk 0:00:35]}  Qf6 {[%clk 0:02:37]} 41. Rb7+ {[%clk 0:00:32]}  Kh6 {[%clk 0:02:36]} 42. Rd7 {[%clk 0:00:28]}  Qc3+ {[%clk 0:02:35]} 43. Kg2 {[%clk 0:00:28]}  Bf6 {[%clk 0:02:33]} 44. Rxd6 {[%clk 0:00:26]}  Qxc4 {[%clk 0:02:31]} 45. Rd7 {[%clk 0:00:21]}  Qe2+ {[%clk 0:02:31]} 46. Kh3 {[%clk 0:00:18]}  c4 {[%clk 0:02:32]} 47. Bg8 {[%clk 0:00:17]}  Bg7 {[%clk 0:02:30]} 48. d6 {[%clk 0:00:17]}  c3 {[%clk 0:02:30]} 49. Rc7 {[%clk 0:00:17]}  c2 {[%clk 0:02:29]} 50. d7 {[%clk 0:00:16]}  Qg4+ {[%clk 0:02:29]} 51. Kg2 {[%clk 0:00:13]}  Qe2+ {[%clk 0:02:30]} 52. Kh3 {[%clk 0:00:14]}  Qd1 {[%clk 0:02:26]} 53. Kg2 {[%clk 0:00:08]}  Qxd7 {[%clk 0:02:26]} 54. Rxd7 {[%clk 0:00:07]}  c1=Q {[%clk 0:02:26]} 0-1


[Site "https://www.chess.com"]

[Event "Titled Tuesday Blitz January 17 Late 2023"]
[White "Korchmar, Vasiliy"]
[Black "Vega Gutierrez, Sabrina"]
[WhiteFideId "24131750"]
[BlackFideId "2219026"]
[WhiteElo "2438"]
[BlackElo "2377"]
[Result "1-0"]
[Round "11"]
[TimeControl "180+2"]
[Date "2023.01.17"]
[WhiteClock "0:00:04"]
[BlackClock "0:00:02"]

1. d4 {[%clk 0:03:00]}  d5 {[%clk 0:02:59]} 2. c4 {[%clk 0:03:00]}  e6 {[%clk 0:02:59]} 3. Nf3 {[%clk 0:02:58]}  c6 {[%clk 0:02:59]} 4. e3 {[%clk 0:02:56]}  f5 {[%clk 0:02:58]} 5. Bd3 {[%clk 0:02:48]}  Nf6 {[%clk 0:02:59]} 6. O-O {[%clk 0:02:48]}  Bd6 {[%clk 0:02:59]} 7. b3 {[%clk 0:02:46]}  Qe7 {[%clk 0:03:00]} 8. Bb2 {[%clk 0:02:46]}  O-O {[%clk 0:02:59]} 9. Nc3 {[%clk 0:02:47]}  b6 {[%clk 0:02:58]} 10. Ne2 {[%clk 0:02:46]}  Bb7 {[%clk 0:02:56]} 11. Nf4 {[%clk 0:02:45]}  Ne4 {[%clk 0:02:51]} 12. Ne5 {[%clk 0:02:44]}  Nd7 {[%clk 0:02:28]} 13. f3 {[%clk 0:02:42]}  Nec5 {[%clk 0:02:08]} 14. Nxc6 {[%clk 0:02:11]}  Bxc6 {[%clk 0:02:06]} 15. dxc5 {[%clk 0:02:11]}  Bxc5 {[%clk 0:01:54]} 16. Qe2 {[%clk 0:02:11]}  Kh8 {[%clk 0:01:06]} 17. cxd5 {[%clk 0:02:09]}  exd5 {[%clk 0:01:05]} 18. Rfe1 {[%clk 0:02:02]}  Rae8 {[%clk 0:00:48]} 19. Bd4 {[%clk 0:01:57]}  Qd6 {[%clk 0:00:21]} 20. Qb2 {[%clk 0:01:51]}  Rf7 {[%clk 0:00:18]} 21. Kh1 {[%clk 0:01:41]}  Rfe7 {[%clk 0:00:19]} 22. Bxf5 {[%clk 0:01:35]}  Qxf4 {[%clk 0:00:15]} 23. exf4 {[%clk 0:00:18]}  Rxe1+ {[%clk 0:00:14]} 24. Bg1 {[%clk 0:00:19]}  Nf6 {[%clk 0:00:07]} 25. Qc3 {[%clk 0:00:09]}  Rxa1 {[%clk 0:00:03]} 26. Qxa1 {[%clk 0:00:10]}  Bxg1 {[%clk 0:00:03]} 27. Kxg1 {[%clk 0:00:10]}  Re2 {[%clk 0:00:03]} 28. Qc1 {[%clk 0:00:06]}  Be8 {[%clk 0:00:02]} 29. Qc8 {[%clk 0:00:04]}  d4 {[%clk 0:00:02]} 30. g4 {[%clk 0:00:04]} 1-0


[Site "https://www.chess.com"]

[Event "Titled Tuesday Blitz January 17 Late 2023"]
[White "Sielecki, Christof"]
[Black "Haszon, David"]
[WhiteFideId "4620437"]
[BlackFideId "733610"]
[WhiteElo "2419"]
[BlackElo "2264"]
[Result "1-0"]
[Round "11"]
[TimeControl "180+2"]
[Date "2023.01.17"]
[WhiteClock "0:00:22"]
[BlackClock "0:00:18"]

1. e4 {[%clk 0:03:00]}  c5 {[%clk 0:02:57]} 2. Nf3 {[%clk 0:03:00]}  d6 {[%clk 0:02:55]} 3. Bb5+ {[%clk 0:03:00]}  Bd7 {[%clk 0:02:53]} 4. Bxd7+ {[%clk 0:02:59]}  Nxd7 {[%clk 0:02:53]} 5. O-O {[%clk 0:02:59]}  g6 {[%clk 0:02:54]} 6. c3 {[%clk 0:02:59]}  Bg7 {[%clk 0:02:53]} 7. d4 {[%clk 0:02:59]}  cxd4 {[%clk 0:02:51]} 8. cxd4 {[%clk 0:02:59]}  e6 {[%clk 0:02:50]} 9. Bf4 {[%clk 0:02:54]}  Qb6 {[%clk 0:02:49]} 10. Nbd2 {[%clk 0:02:54]}  Qa6 {[%clk 0:02:42]} 11. Qb3 {[%clk 0:02:44]}  Ne7 {[%clk 0:02:38]} 12. Nc4 {[%clk 0:02:43]}  Nc8 {[%clk 0:02:32]} 13. a4 {[%clk 0:02:29]}  O-O {[%clk 0:02:30]} 14. Qb5 {[%clk 0:02:20]}  Qc6 {[%clk 0:02:23]} 15. Qxc6 {[%clk 0:02:13]}  bxc6 {[%clk 0:02:24]} 16. Nxd6 {[%clk 0:02:14]}  Nxd6 {[%clk 0:02:15]} 17. Bxd6 {[%clk 0:02:14]}  Rfc8 {[%clk 0:02:14]} 18. Rac1 {[%clk 0:02:05]}  c5 {[%clk 0:02:02]} 19. dxc5 {[%clk 0:01:55]}  Bxb2 {[%clk 0:01:54]} 20. Rc2 {[%clk 0:01:55]}  Bg7 {[%clk 0:01:48]} 21. Rb1 {[%clk 0:01:44]}  Bf8 {[%clk 0:01:29]} 22. Bxf8 {[%clk 0:01:29]}  Kxf8 {[%clk 0:01:30]} 23. Rb5 {[%clk 0:01:22]}  a6 {[%clk 0:01:26]} 24. Ra5 {[%clk 0:01:22]}  Nb8 {[%clk 0:01:20]} 25. c6 {[%clk 0:01:05]}  Rxc6 {[%clk 0:01:18]} 26. Rxc6 {[%clk 0:01:04]}  Nxc6 {[%clk 0:01:19]} 27. Rc5 {[%clk 0:01:05]}  Rb8 {[%clk 0:00:59]} 28. g4 {[%clk 0:01:00]}  Nd8 {[%clk 0:00:47]} 29. Ne5 {[%clk 0:00:58]}  Rb7 {[%clk 0:00:46]} 30. g5 {[%clk 0:00:55]}  Ke7 {[%clk 0:00:43]} 31. h4 {[%clk 0:00:54]}  f6 {[%clk 0:00:41]} 32. Ng4 {[%clk 0:00:53]}  f5 {[%clk 0:00:34]} 33. exf5 {[%clk 0:00:49]}  exf5 {[%clk 0:00:35]} 34. Nf6 {[%clk 0:00:47]}  h6 {[%clk 0:00:23]} 35. Ra5 {[%clk 0:00:41]}  hxg5 {[%clk 0:00:22]} 36. hxg5 {[%clk 0:00:41]}  Ra7 {[%clk 0:00:17]} 37. Nd5+ {[%clk 0:00:38]}  Kd6 {[%clk 0:00:17]} 38. Nf4 {[%clk 0:00:38]}  Ne6 {[%clk 0:00:16]} 39. Nxe6 {[%clk 0:00:34]}  Kxe6 {[%clk 0:00:17]} 40. f4 {[%clk 0:00:31]}  Kd6 {[%clk 0:00:17]} 41. Kf2 {[%clk 0:00:31]}  Kc6 {[%clk 0:00:18]} 42. Re5 {[%clk 0:00:28]}  Rd7 {[%clk 0:00:17]} 43. Ke3 {[%clk 0:00:25]}  Rd1 {[%clk 0:00:17]} 44. Re6+ {[%clk 0:00:25]}  Kc5 {[%clk 0:00:14]} 45. Rxa6 {[%clk 0:00:23]}  Re1+ {[%clk 0:00:15]} 46. Kf3 {[%clk 0:00:24]}  Rf1+ {[%clk 0:00:15]} 47. Kg3 {[%clk 0:00:24]}  Rg1+ {[%clk 0:00:16]} 48. Kf2 {[%clk 0:00:25]}  Rg4 {[%clk 0:00:16]} 49. Kf3 {[%clk 0:00:25]}  Rg1 {[%clk 0:00:16]} 50. Rxg6 {[%clk 0:00:25]}  Ra1 {[%clk 0:00:16]} 51. Re6 {[%clk 0:00:22]}  Ra3+ {[%clk 0:00:16]} 52. Re3 {[%clk 0:00:21]}  Rxa4 {[%clk 0:00:17]} 53. Re5+ {[%clk 0:00:21]}  Kd4 {[%clk 0:00:17]} 54. Rxf5 {[%clk 0:00:22]}  Ra3+ {[%clk 0:00:18]} 55. Kg4 {[%clk 0:00:22]} 1-0


[Site "https://www.chess.com"]

[Event "Titled Tuesday Blitz January 17 Late 2023"]
[White "Mazurkiewicz, Michal"]
[Black "Yurovskykh, Oleksandr"]
[WhiteFideId "1124943"]
[BlackFideId "14134020"]
[WhiteElo "2145"]
[BlackElo "2328"]
[Result "0-1"]
[Round "11"]
[TimeControl "180+2"]
[Date "2023.01.17"]
[WhiteClock "0:00:03"]
[BlackClock "0:00:55"]

1. e4 {[%clk 0:03:00]}  g6 {[%clk 0:02:56]} 2. d4 {[%clk 0:03:00]}  Bg7 {[%clk 0:02:54]} 3. Nc3 {[%clk 0:03:00]}  d6 {[%clk 0:02:54]} 4. f4 {[%clk 0:03:01]}  a6 {[%clk 0:02:55]} 5. Nf3 {[%clk 0:03:01]}  b5 {[%clk 0:02:55]} 6. Be2 {[%clk 0:02:57]}  Bb7 {[%clk 0:02:52]} 7. a3 {[%clk 0:02:57]}  Nd7 {[%clk 0:02:52]} 8. O-O {[%clk 0:02:50]}  c5 {[%clk 0:02:50]} 9. Be3 {[%clk 0:02:10]}  cxd4 {[%clk 0:02:48]} 10. Bxd4 {[%clk 0:02:07]}  Bxd4+ {[%clk 0:02:41]} 11. Qxd4 {[%clk 0:02:05]}  Qb6 {[%clk 0:02:41]} 12. Rad1 {[%clk 0:02:01]}  Ngf6 {[%clk 0:02:22]} 13. e5 {[%clk 0:02:01]}  Ng4 {[%clk 0:02:21]} 14. exd6 {[%clk 0:00:55]}  Qxd4+ {[%clk 0:01:48]} 15. Rxd4 {[%clk 0:00:56]}  Ne3 {[%clk 0:01:47]} 16. Rc1 {[%clk 0:00:24]}  Nf5 {[%clk 0:01:47]} 17. Rd2 {[%clk 0:00:20]}  Nxd6 {[%clk 0:01:47]} 18. Nd5 {[%clk 0:00:19]}  Bxd5 {[%clk 0:01:44]} 19. Rxd5 {[%clk 0:00:20]}  Rc8 {[%clk 0:01:41]} 20. c3 {[%clk 0:00:20]}  Nb6 {[%clk 0:01:40]} 21. Rd4 {[%clk 0:00:17]}  Nbc4 {[%clk 0:01:38]} 22. Rc2 {[%clk 0:00:10]}  O-O {[%clk 0:01:18]} 23. Ne5 {[%clk 0:00:10]}  Nf5 {[%clk 0:01:13]} 24. Re4 {[%clk 0:00:10]}  Ncd6 {[%clk 0:01:13]} 25. Rb4 {[%clk 0:00:07]}  a5 {[%clk 0:01:13]} 26. Rxb5 {[%clk 0:00:08]}  Nxb5 {[%clk 0:01:14]} 27. Bxb5 {[%clk 0:00:09]}  Rfd8 {[%clk 0:01:10]} 28. Kf2 {[%clk 0:00:06]}  Nd6 {[%clk 0:01:03]} 29. Be2 {[%clk 0:00:04]}  f6 {[%clk 0:01:00]} 30. Nf3 {[%clk 0:00:03]}  a4 {[%clk 0:00:56]} 31. g4 {[%clk 0:00:03]}  Rb8 {[%clk 0:00:54]} 32. c4 {[%clk 0:00:03]}  Ne4+ {[%clk 0:00:54]} 33. Ke3 {[%clk 0:00:03]}  Nc5 {[%clk 0:00:55]} 0-1


[Site "https://www.chess.com"]

[Event "Titled Tuesday Blitz January 17 Late 2023"]
[White "Hirneise, Jens"]
[Black "Van Dael, Siem"]
[WhiteFideId "24614734"]
[BlackFideId "1049771"]
[WhiteElo "2277"]
[BlackElo "2319"]
[Result "0-1"]
[Round "11"]
[TimeControl "180+2"]
[Date "2023.01.17"]
[WhiteClock "0:00:05"]
[BlackClock "0:00:09"]

1. d4 {[%clk 0:03:00]}  Nf6 {[%clk 0:03:00]} 2. Nc3 {[%clk 0:03:00]}  d5 {[%clk 0:03:00]} 3. Nf3 {[%clk 0:02:59]}  Bf5 {[%clk 0:02:57]} 4. g3 {[%clk 0:02:59]}  e6 {[%clk 0:02:57]} 5. Bg2 {[%clk 0:02:59]}  Bb4 {[%clk 0:02:56]} 6. O-O {[%clk 0:02:59]}  O-O {[%clk 0:02:57]} 7. Nh4 {[%clk 0:02:58]}  Bxc3 {[%clk 0:02:52]} 8. Nxf5 {[%clk 0:02:54]}  exf5 {[%clk 0:02:52]} 9. bxc3 {[%clk 0:02:54]}  Re8 {[%clk 0:02:50]} 10. a4 {[%clk 0:02:52]}  a5 {[%clk 0:02:49]} 11. c4 {[%clk 0:02:51]}  Nc6 {[%clk 0:02:45]} 12. cxd5 {[%clk 0:02:48]}  Nxd5 {[%clk 0:02:45]} 13. c4 {[%clk 0:02:45]}  Nc3 {[%clk 0:02:45]} 14. Qb3 {[%clk 0:02:39]}  Nxe2+ {[%clk 0:02:42]} 15. Kh1 {[%clk 0:02:39]}  Nexd4 {[%clk 0:02:43]} 16. Qc3 {[%clk 0:02:22]}  Qe7 {[%clk 0:02:39]} 17. Be3 {[%clk 0:02:21]}  Rad8 {[%clk 0:02:31]} 18. Rab1 {[%clk 0:02:20]}  b6 {[%clk 0:02:30]} 19. c5 {[%clk 0:02:16]}  Qxc5 {[%clk 0:02:27]} 20. Qxc5 {[%clk 0:02:16]}  bxc5 {[%clk 0:02:28]} 21. Rfc1 {[%clk 0:02:15]}  Re5 {[%clk 0:02:20]} 22. Bf4 {[%clk 0:02:14]}  Re2 {[%clk 0:02:18]} 23. Rxc5 {[%clk 0:02:02]}  Nb4 {[%clk 0:02:17]} 24. Bxc7 {[%clk 0:01:57]}  Rc8 {[%clk 0:02:15]} 25. Rxa5 {[%clk 0:01:48]}  Nd3 {[%clk 0:02:11]} 26. Rd5 {[%clk 0:01:36]}  Nxf2+ {[%clk 0:02:01]} 27. Kg1 {[%clk 0:01:35]}  Nc2 {[%clk 0:01:59]} 28. Bf1 {[%clk 0:01:07]}  Ree8 {[%clk 0:01:49]} 29. Bb5 {[%clk 0:01:04]}  Nh3+ {[%clk 0:01:43]} 30. Kh1 {[%clk 0:00:57]}  Nf2+ {[%clk 0:01:40]} 31. Kg2 {[%clk 0:00:44]}  Ne3+ {[%clk 0:01:37]} 32. Kxf2 {[%clk 0:00:43]}  Nxd5 {[%clk 0:01:37]} 33. Bxe8 {[%clk 0:00:43]}  Rxe8 {[%clk 0:01:27]} 34. Bb8 {[%clk 0:00:42]}  Nc3 {[%clk 0:01:26]} 35. Rb4 {[%clk 0:00:39]}  Nxa4 {[%clk 0:01:23]} 36. Be5 {[%clk 0:00:35]}  Nc5 {[%clk 0:01:21]} 37. Kg2 {[%clk 0:00:28]}  Nd3 {[%clk 0:01:21]} 38. Rb8 {[%clk 0:00:28]}  Rxb8 {[%clk 0:01:19]} 39. Bxb8 {[%clk 0:00:29]}  g5 {[%clk 0:01:13]} 40. Kf3 {[%clk 0:00:29]}  Kg7 {[%clk 0:01:13]} 41. Ke3 {[%clk 0:00:29]}  Nc5 {[%clk 0:01:11]} 42. Kd4 {[%clk 0:00:28]}  Nd7 {[%clk 0:01:09]} 43. Bc7 {[%clk 0:00:27]}  Kg6 {[%clk 0:01:10]} 44. Ke3 {[%clk 0:00:25]}  Nf6 {[%clk 0:01:07]} 45. Kf3 {[%clk 0:00:24]}  Nd5 {[%clk 0:01:03]} 46. Be5 {[%clk 0:00:23]}  h6 {[%clk 0:00:55]} 47. Ke2 {[%clk 0:00:23]}  h5 {[%clk 0:00:42]} 48. Bd4 {[%clk 0:00:24]}  f4 {[%clk 0:00:41]} 49. Kf3 {[%clk 0:00:20]}  Kf5 {[%clk 0:00:39]} 50. gxf4 {[%clk 0:00:19]}  Nxf4 {[%clk 0:00:38]} 51. Be3 {[%clk 0:00:17]}  Ng6 {[%clk 0:00:38]} 52. Bf2 {[%clk 0:00:16]}  Ne5+ {[%clk 0:00:38]} 53. Kg3 {[%clk 0:00:15]}  h4+ {[%clk 0:00:38]} 54. Kg2 {[%clk 0:00:15]}  Kg4 {[%clk 0:00:35]} 55. h3+ {[%clk 0:00:15]}  Kf4 {[%clk 0:00:36]} 56. Be1 {[%clk 0:00:15]}  Nc4 {[%clk 0:00:34]} 57. Bb4 {[%clk 0:00:13]}  f5 {[%clk 0:00:30]} 58. Bc5 {[%clk 0:00:12]}  g4 {[%clk 0:00:20]} 59. hxg4 {[%clk 0:00:12]}  fxg4 {[%clk 0:00:21]} 60. Bf2 {[%clk 0:00:11]}  Ne3+ {[%clk 0:00:19]} 61. Kg1 {[%clk 0:00:09]}  g3 {[%clk 0:00:17]} 62. Be1 {[%clk 0:00:09]}  Kf3 {[%clk 0:00:16]} 63. Bb4 {[%clk 0:00:09]}  h3 {[%clk 0:00:16]} 64. Bd6 {[%clk 0:00:10]}  Nf5 {[%clk 0:00:12]} 65. Be5 {[%clk 0:00:07]}  Nh6 {[%clk 0:00:08]} 66. Bc7 {[%clk 0:00:06]}  Ng4 {[%clk 0:00:09]} 67. Bd6 {[%clk 0:00:05]}  h2+ {[%clk 0:00:08]} 68. Kh1 {[%clk 0:00:05]}  Nf2# {[%clk 0:00:09]} 0-1


[Site "https://www.chess.com"]

[Event "Titled Tuesday Blitz January 17 Late 2023"]
[White "Medeiros,Thauane Ferreira"]
[Black "Berezin, Viktor"]
[WhiteFideId "2134470"]
[BlackFideId "14107872"]
[WhiteElo "1854"]
[BlackElo "2307"]
[Result "0-1"]
[Round "11"]
[TimeControl "180+2"]
[Date "2023.01.17"]
[WhiteClock "0:00:01"]
[BlackClock "0:00:04"]

1. d4 {[%clk 0:02:03]}  Nf6 {[%clk 0:02:55]} 2. Bg5 {[%clk 0:02:02]}  c6 {[%clk 0:02:46]} 3. Bxf6 {[%clk 0:02:00]}  exf6 {[%clk 0:02:44]} 4. c4 {[%clk 0:02:00]}  g6 {[%clk 0:02:43]} 5. Nc3 {[%clk 0:01:54]}  Bg7 {[%clk 0:02:43]} 6. e3 {[%clk 0:01:53]}  O-O {[%clk 0:02:43]} 7. g3 {[%clk 0:01:52]}  d6 {[%clk 0:02:43]} 8. Bg2 {[%clk 0:01:50]}  h5 {[%clk 0:02:43]} 9. Nge2 {[%clk 0:01:48]}  h4 {[%clk 0:02:41]} 10. gxh4 {[%clk 0:01:47]}  f5 {[%clk 0:02:39]} 11. h5 {[%clk 0:01:45]}  Qh4 {[%clk 0:02:28]} 12. hxg6 {[%clk 0:01:43]}  fxg6 {[%clk 0:02:29]} 13. Nf4 {[%clk 0:01:39]}  Qf6 {[%clk 0:02:19]} 14. h4 {[%clk 0:01:36]}  Re8 {[%clk 0:01:58]} 15. Qf3 {[%clk 0:01:28]}  Qxd4 {[%clk 0:01:46]} 16. Qg3 {[%clk 0:01:21]}  Qxc4 {[%clk 0:01:43]} 17. Qxg6 {[%clk 0:01:18]}  Qf7 {[%clk 0:01:40]} 18. Qxd6 {[%clk 0:01:18]}  Be5 {[%clk 0:01:29]} 19. Qg6+ {[%clk 0:01:13]}  Qxg6 {[%clk 0:01:28]} 20. Nxg6 {[%clk 0:01:14]}  f4 {[%clk 0:01:10]} 21. Nxe5 {[%clk 0:01:10]}  Rxe5 {[%clk 0:01:09]} 22. Ke2 {[%clk 0:01:04]}  Bg4+ {[%clk 0:01:04]} 23. Bf3 {[%clk 0:00:58]}  Bxf3+ {[%clk 0:01:04]} 24. Kxf3 {[%clk 0:00:57]}  fxe3 {[%clk 0:01:04]} 25. fxe3 {[%clk 0:00:58]}  Nd7 {[%clk 0:01:02]} 26. Rhg1+ {[%clk 0:00:54]}  Kh7 {[%clk 0:01:01]} 27. Rad1 {[%clk 0:00:51]}  Rf8+ {[%clk 0:01:00]} 28. Ke2 {[%clk 0:00:50]}  Nb6 {[%clk 0:00:57]} 29. Rg5 {[%clk 0:00:39]}  Rfe8 {[%clk 0:00:48]} 30. Rxe5 {[%clk 0:00:36]}  Rxe5 {[%clk 0:00:49]} 31. Rd4 {[%clk 0:00:33]}  Kg6 {[%clk 0:00:46]} 32. Kf3 {[%clk 0:00:27]}  Re7 {[%clk 0:00:36]} 33. Rd6+ {[%clk 0:00:21]}  Kh5 {[%clk 0:00:34]} 34. Rd4 {[%clk 0:00:19]}  Nd7 {[%clk 0:00:28]} 35. Ne4 {[%clk 0:00:18]}  Ne5+ {[%clk 0:00:27]} 36. Kg3 {[%clk 0:00:18]}  Nf7 {[%clk 0:00:17]} 37. Nf6+ {[%clk 0:00:17]}  Kg6 {[%clk 0:00:17]} 38. Ng4 {[%clk 0:00:17]}  c5 {[%clk 0:00:08]} 39. Rf4 {[%clk 0:00:16]}  Kg7 {[%clk 0:00:07]} 40. h5 {[%clk 0:00:16]}  Rd7 {[%clk 0:00:06]} 41. h6+ {[%clk 0:00:13]}  Nxh6 {[%clk 0:00:04]} 42. Nxh6 {[%clk 0:00:14]}  Kxh6 {[%clk 0:00:05]} 43. Rf6+ {[%clk 0:00:15]}  Kg7 {[%clk 0:00:05]} 44. Rf5 {[%clk 0:00:16]}  b6 {[%clk 0:00:05]} 45. Kf4 {[%clk 0:00:16]}  Rd2 {[%clk 0:00:05]} 46. Re5 {[%clk 0:00:14]}  Kf6 {[%clk 0:00:04]} 47. Rf5+ {[%clk 0:00:13]}  Ke6 {[%clk 0:00:04]} 48. Re5+ {[%clk 0:00:13]}  Kd6 {[%clk 0:00:05]} 49. a4 {[%clk 0:00:07]}  Rxb2 {[%clk 0:00:05]} 50. a5 {[%clk 0:00:07]}  bxa5 {[%clk 0:00:05]} 51. Re8 {[%clk 0:00:07]}  a4 {[%clk 0:00:05]} 52. Ra8 {[%clk 0:00:07]}  Rb7 {[%clk 0:00:05]} 53. Rd8+ {[%clk 0:00:07]}  Kc6 {[%clk 0:00:05]} 54. Rd3 {[%clk 0:00:07]}  c4 {[%clk 0:00:04]} 55. Rc3 {[%clk 0:00:04]}  Kc5 {[%clk 0:00:04]} 56. e4 {[%clk 0:00:04]}  Rb3 {[%clk 0:00:04]} 57. Rc1 {[%clk 0:00:04]}  a3 {[%clk 0:00:04]} 58. e5 {[%clk 0:00:03]}  Rb2 {[%clk 0:00:05]} 59. e6 {[%clk 0:00:02]}  Kd6 {[%clk 0:00:04]} 60. Kf5 {[%clk 0:00:01]}  Ke7 {[%clk 0:00:04]} 0-1


[Site "https://www.chess.com"]